fUSD/lending_fUSD_20241004
["ID","MTS","AMOUNT","RATE_DAILY","PERIOD"]
[339840241,1728052369095,-500.0,0.00041369,120]
[339840242,1728052369105,-500.0,0.00041369,120]
[339840243,1728052369114,-500.0,0.00041369,120]
[339840244,1728052369124,-500.0,0.00041369,120]
[339840245,1728052369133,-167.24644014,0.00041369,120]
[339840246,1728052369143,-626.02,0.00041369,120]
[339840247,1728052369152,-500.0,0.00041369,120]
[339840248,1728052369161,-758.01,0.00041369,120]
[339840249,1728052369170,-500.0,0.00041369,120]
[339840250,1728052369181,-500.0,0.00041369,120]
[339840251,1728052369190,-2079.16,0.00041369,120]
[339840252,1728052369199,-500.0,0.00041369,120]
[339840253,1728052369209,-555.19,0.00041369,120]
[339840254,1728052369218,-571.51,0.00041369,120]
[339840255,1728052369227,-500.0,0.00041369,120]
[339840256,1728052369237,-500.0,0.00041369,120]
[339840257,1728052369246,-500.0,0.00041369,120]
[339840258,1728052369255,-396.06502426,0.00041369,120]
[339840259,1728052369265,-612.16,0.00041369,120]
[339840260,1728052369274,-1560.63,0.00041369,120]
[339840261,1728052369283,-500.0,0.00041369,120]
[339840262,1728052369293,-500.0,0.00041369,120]
[339840263,1728052369306,-883.27,0.00041369,120]
[339840264,1728052369317,-586.05,0.00041369,120]
[339840265,1728052369327,-623.92,0.00041369,120]
[339840266,1728052369335,-500.0,0.00041369,120]
[339840267,1728052369345,-790.33,0.00041369,120]
[339840268,1728052369354,-500.0,0.00041369,120]
[339840269,1728052369363,-533.77,0.00041369,120]
[339840270,1728052369372,-500.0,0.00041369,120]
[339840271,1728052369382,-500.0,0.00041369,120]
[339840272,1728052369391,-500.0,0.00041369,120]
[339840273,1728052369400,-741.16,0.00041369,120]
[339840274,1728052369409,-500.0,0.00041369,120]
[339840275,1728052369419,-500.0,0.00041369,120]
[339840276,1728052369428,-805.8,0.00041369,120]
[339840277,1728052369437,-705.12,0.00041369,120]
[339840278,1728052369446,-500.0,0.00041369,120]
[339840279,1728052369455,-500.0,0.00041369,120]
[339840280,1728052369464,-680.56,0.00041369,120]
[339840281,1728052369473,-620.12,0.00041369,120]
[339840282,1728052369483,-745.23,0.00041369,120]
[339840283,1728052369492,-500.0,0.00041369,120]
[339840284,1728052369501,-648.92,0.00041369,120]
[339840285,1728052369511,-500.0,0.00041369,120]
[339840286,1728052369520,-650.29,0.00041369,120]
[339840287,1728052369530,-500.0,0.00041369,120]
[339840288,1728052369540,-500.0,0.00041369,120]
[339840289,1728052369556,-500.0,0.00041369,120]
[339840290,1728052369566,-500.0,0.00041369,120]
[339840291,1728052369575,-524.77319635,0.00041369,120]
[339840292,1728052369584,-500.0,0.00041369,120]
[339840293,1728052369594,-500.0,0.00041369,120]
[339840294,1728052369604,-1059.57,0.00041369,120]
[339840295,1728052369614,-500.0,0.00041369,120]
[339840296,1728052369624,-500.0,0.00041369,120]
[339840297,1728052369633,-500.0,0.00041369,120]
[339840298,1728052369643,-1103.96,0.00041369,120]
[339840299,1728052369653,-500.0,0.00041369,120]
[339840300,1728052369662,-649.65,0.00041369,120]
[339840301,1728052369672,-500.0,0.00041369,120]
[339840302,1728052369683,-500.0,0.00041369,120]
[339840303,1728052369692,-500.0,0.00041369,120]
[339840304,1728052369702,-500.0,0.00041369,120]
[339840305,1728052369711,-637.67,0.00041369,120]
[339840306,1728052369721,-500.0,0.00041369,120]
[339840307,1728052369730,-200.0,0.00041369,7]
[339840308,1728052369740,-500.0,0.00041369,120]
[339840309,1728052369750,-313.59004572,0.00041369,120]
[339840310,1728052369759,-500.0,0.00041369,120]
[339840311,1728052369768,-500.0,0.00041369,120]
[339840312,1728052369777,-1085.42,0.00041369,120]
[339840313,1728052369787,-533.95370239,0.00041369,120]
[339840314,1728052369800,-500.0,0.00041369,120]
[339840315,1728052369809,-500.0,0.00041369,120]
[339840316,1728052369819,-500.0,0.00041369,120]
[339840317,1728052369828,-743.04,0.00041369,120]
[339840318,1728052369838,-500.0,0.00041369,120]
[339840319,1728052369847,-306.02943857,0.00041369,120]
[339840320,1728052369856,-500.0,0.00041369,120]
[339840321,1728052369865,-880.08,0.00041369,120]
[339840322,1728052369875,-500.0,0.00041369,120]
[339840323,1728052369884,-511.66,0.00041369,120]
[339840324,1728052369894,-500.0,0.00041369,120]
[339840325,1728052369904,-525.38,0.00041369,120]
[339840326,1728052369913,-500.0,0.00041369,120]
[339840327,1728052369923,-500.0,0.00041369,120]
[339840328,1728052369932,-578.74,0.00041369,120]
[339840329,1728052369942,-888.8,0.00041369,120]
[339840330,1728052369952,-570.69729194,0.00041369,120]
[339840331,1728052369962,-500.0,0.00041369,120]
[339840332,1728052369972,-782.81,0.00041369,120]
[339840333,1728052369981,-627.53,0.00041369,120]
[339840334,1728052369990,-500.0,0.00041369,120]
[339840335,1728052369999,-942.19,0.00041369,120]
[339840336,1728052370009,-612.72,0.00041369,120]
[339840337,1728052370018,-500.0,0.00041369,120]
[339840338,1728052370029,-500.0,0.00041369,120]
[339840339,1728052370039,-500.0,0.00041369,120]
[339840340,1728052370052,-553.18,0.00041369,120]
[339840341,1728052370061,-302.78956631,0.00041369,120]
[339840342,1728052370071,-898.91,0.00041369,120]
[339840343,1728052370080,-1053.16,0.00041369,120]
[339840344,1728052370090,-500.0,0.00041369,120]
[339840345,1728052370099,-574.04,0.00041369,120]
[339840346,1728052370109,-810.52,0.00041369,120]
[339840347,1728052370119,-806.27,0.00041369,120]
[339840348,1728052370128,-238.52791699,0.00041369,120]
[339840349,1728052370140,-643.39,0.00041369,24]
[339840350,1728052370150,-500.0,0.00041369,120]
[339840351,1728052370160,-500.0,0.00041369,120]
[339840352,1728052370169,-600.7246321,0.00041369,120]
[339840353,1728052370179,-519.64,0.00041369,120]
[339840354,1728052370190,-500.0,0.00041369,120]
[339840355,1728052370200,-1013.53,0.00041369,120]
[339840356,1728052370211,-1310.29,0.00041369,120]
[339840357,1728052370222,-500.0,0.00041369,120]
[339840358,1728052370231,-500.0,0.00041369,120]
[339840359,1728052370243,-591.41,0.00041369,120]
[339840360,1728052370252,-240.70760459,0.00041369,120]
[339840361,1728052370262,-500.0,0.00041369,120]
[339840362,1728052370273,-500.0,0.00041369,120]
[339840363,1728052370284,-639.7,0.00041369,120]
[339840364,1728052370297,-500.0,0.00041369,120]
[339840365,1728052370308,-500.0,0.00041369,120]
[339840366,1728052370318,-500.0,0.00041369,120]
[339840367,1728052370327,-1561.02,0.00041369,120]
[339840368,1728052370336,-827.19,0.00041369,120]
[339840369,1728052370345,-4363.93,0.00041369,2]
[339840370,1728052370357,-500.0,0.00041369,120]
[339840371,1728052370367,-500.0,0.00041369,120]
[339840372,1728052370376,-500.0,0.00041369,120]
[339840373,1728052370387,-500.0,0.00041369,120]
[339840374,1728052370396,-563.6,0.00041369,120]
[339840375,1728052370405,-743.62,0.00041369,120]
[339840376,1728052370414,-500.0,0.00041369,120]
[339840377,1728052370423,-559.23,0.00041369,120]
[339840378,1728052370433,-500.0,0.00041369,120]
[339840379,1728052370442,-500.0,0.00041369,120]
[339840380,1728052370451,-500.0,0.00041369,120]
[339840381,1728052370461,-500.0,0.00041369,120]
[339840382,1728052370470,-500.0,0.00041369,120]
[339840383,1728052370480,-500.0,0.00041369,120]
[339840384,1728052370490,-645.48,0.00041369,120]
[339840385,1728052370499,-500.0,0.00041369,120]
[339840386,1728052370509,-811.53,0.00041369,120]
[339840387,1728052370518,-500.0,0.00041369,120]
[339840388,1728052370528,-500.0,0.00041369,120]
[339840389,1728052370537,-500.0,0.00041369,120]
[339840390,1728052370548,-500.0,0.00041369,120]
[339840391,1728052370558,-1108.69,0.00041369,120]
[339840392,1728052370567,-469.08913284,0.00041369,120]
[339840393,1728052370577,-500.0,0.00041369,120]
[339840394,1728052370586,-265.72258016,0.00041369,120]
[339840395,1728052370596,-649.16,0.00041369,120]
[339840396,1728052370605,-500.0,0.00041369,120]
[339840397,1728052370615,-741.25,0.00041369,120]
[339840398,1728052370624,-983.7,0.00041369,14]
[339840399,1728052370634,-500.0,0.00041369,120]
[339840400,1728052370643,-879.29,0.00041369,120]
[339840401,1728052370653,-696.42,0.00041369,120]
[339840402,1728052370662,-500.0,0.00041369,120]
[339840403,1728052370672,-500.0,0.00041369,120]
[339840404,1728052370682,-500.0,0.00041369,120]
[339840405,1728052370691,-1063.83,0.00041369,120]
[339840406,1728052370701,-727.52,0.00041369,120]
[339840407,1728052370711,-500.0,0.00041369,120]
[339840408,1728052370720,-500.0,0.00041369,120]
[339840409,1728052370730,-742.02,0.00041369,120]
[339840410,1728052370740,-800.71,0.00041369,120]
[339840411,1728052370750,-501.80296503,0.00041369,120]
[339840412,1728052370760,-531.4,0.00041369,120]
[339840413,1728052370770,-500.0,0.00041369,120]
[339840414,1728052370780,-607.06,0.00041369,120]
[339840415,1728052370791,-542.93,0.00041369,120]
[339840416,1728052370805,-572.2,0.00041369,120]
[339840417,1728052370814,-1926.06,0.00041369,120]
[339840418,1728052370824,-977.76,0.00041369,120]
[339840419,1728052370834,-500.0,0.00041369,120]
[339840420,1728052370844,-500.0,0.00041369,120]
[339840421,1728052370853,-407.37605241,0.00041369,120]
[339840422,1728052370863,-1025.77,0.00041369,120]
[339840423,1728052370872,-500.0,0.00041369,120]
[339840424,1728052370882,-500.0,0.00041369,120]
[339840425,1728052370891,-500.0,0.00041369,120]
[339840426,1728052370901,-876.92,0.00041369,120]
[339840427,1728052370911,-634.02,0.00041369,120]
[339840428,1728052370921,-500.0,0.00041369,120]
[339840429,1728052370931,-586.53,0.00041369,120]
[339840430,1728052370941,-500.0,0.00041369,120]
[339840431,1728052370951,-500.0,0.00041369,120]
[339840432,1728052370960,-500.0,0.00041369,120]
[339840433,1728052370969,-500.0,0.00041369,120]
[339840434,1728052370980,-500.0,0.00041369,120]
[339840435,1728052370989,-613.94967755,0.00041369,120]
[339840436,1728052370999,-500.0,0.00041369,120]
[339840437,1728052371008,-500.0,0.00041369,120]
[339840438,1728052371018,-500.0,0.00041369,120]
[339840439,1728052371027,-500.0,0.00041369,120]
[339840440,1728052371036,-500.0,0.00041369,120]
[339840441,1728052371049,-500.0,0.00041369,120]
[339840442,1728052371058,-500.0,0.00041369,120]
[339840443,1728052371067,-410.75782918,0.00041369,120]
[339840444,1728052371077,-500.0,0.00041369,120]
[339840445,1728052371086,-997.26,0.00041369,120]
[339840446,1728052371096,-500.0,0.00041369,120]
[339840447,1728052371105,-500.0,0.00041369,120]
[339840448,1728052371115,-649.23,0.00041369,120]
[339840449,1728052371124,-500.0,0.00041369,120]
[339840450,1728052371133,-1071.81,0.00041369,120]
[339840451,1728052371143,-500.0,0.00041369,120]
[339840452,1728052371152,-812.57,0.00041369,120]
[339840453,1728052371162,-500.0,0.00041369,120]
[339840454,1728052371171,-500.0,0.00041369,120]
[339840455,1728052371180,-500.0,0.00041369,120]
[339840456,1728052371190,-638.93,0.00041369,120]
[339840457,1728052371199,-605.12,0.00041369,120]
[339840458,1728052371208,-500.0,0.00041369,120]
[339840459,1728052371217,-500.0,0.00041369,120]
[339840460,1728052371227,-553.38678828,0.00041369,120]
[339840461,1728052371236,-517.57,0.00041369,120]
[339840462,1728052371246,-500.0,0.00041369,120]
[339840463,1728052371255,-1187.88,0.00041369,120]
[339840464,1728052371264,-1345.49,0.00041369,120]
[339840465,1728052371274,-153.84384973,0.00041369,120]
[339840466,1728052371283,-500.0,0.00041369,120]
[339840467,1728052371292,-500.0,0.00041369,120]
[339840468,1728052371309,-500.0,0.00041369,120]
[339840469,1728052371318,-1287.48,0.00041369,120]
[339840470,1728052371328,-500.0,0.00041369,120]
[339840471,1728052371337,-511.03683712,0.00041369,120]
[339840472,1728052371346,-622.3,0.00041369,120]
[339840473,1728052371356,-599.91,0.00041369,120]
[339840474,1728052371365,-500.0,0.00041369,120]
[339840475,1728052371374,-916.31,0.00041369,120]
[339840476,1728052371384,-1282.57,0.00041369,120]
[339840477,1728052371394,-594.74,0.00041369,120]
[339840478,1728052371403,-500.0,0.00041369,120]
[339840479,1728052371412,-500.0,0.00041369,120]
[339840480,1728052371422,-500.0,0.00041369,120]
[339840481,1728052371431,-500.0,0.00041369,120]
[339840482,1728052371441,-614.65,0.00041369,120]
[339840483,1728052371451,-500.0,0.00041369,120]
[339840484,1728052371460,-500.0,0.00041369,120]
[339840485,1728052371469,-569.04,0.00041369,120]
[339840486,1728052371478,-500.0,0.00041369,120]
[339840487,1728052371488,-896.69,0.00041369,120]
[339840488,1728052371498,-500.0,0.00041369,120]
[339840489,1728052371507,-1266.27,0.00041369,7]
[339840490,1728052371516,-500.0,0.00041369,120]
[339840491,1728052371525,-500.0,0.00041369,120]
[339840492,1728052371534,-500.0,0.00041369,120]
[339840493,1728052371544,-547.54,0.00041369,120]
[339840494,1728052371557,-948.94,0.00041369,120]
[339840495,1728052371566,-500.0,0.00041369,120]
[339840496,1728052371575,-500.0,0.00041369,120]
[339840497,1728052371584,-500.0,0.00041369,120]
[339840498,1728052371594,-500.0,0.00041369,120]
[339840499,1728052371603,-500.0,0.00041369,120]
[339840500,1728052371613,-500.0,0.00041369,120]
[339840501,1728052371622,-500.0,0.00041369,120]
[339840502,1728052371631,-763.53,0.00041369,120]
[339840503,1728052371641,-1391.13,0.00041369,120]
[339840504,1728052371651,-500.0,0.00041369,120]
[339840505,1728052371660,-500.0,0.00041369,120]
[339840506,1728052371670,-500.0,0.00041369,120]
[339840507,1728052371680,-1983.22,0.00041369,120]
[339840508,1728052371689,-500.0,0.00041369,120]
[339840509,1728052371699,-500.0,0.00041369,120]
[339840510,1728052371791,-906.8,0.00041369,120]
[339840511,1728052371805,-604.79,0.00041369,120]
[339840512,1728052371814,-639.5,0.00041369,120]
[339840513,1728052371824,-500.0,0.00041369,120]
[339840514,1728052371833,-500.0,0.00041369,120]
[339840515,1728052371844,-500.0,0.00041369,120]
[339840516,1728052371854,-693.45,0.00041369,120]
[339840517,1728052371863,-542.48,0.00041369,120]
[339840518,1728052371873,-500.0,0.00041369,120]
[339840519,1728052371882,-164.50037388,0.00041369,120]
[339840520,1728052371894,-2885.95,0.00041369,120]
[339840521,1728052371903,-503.19114966,0.00041369,120]
[339840522,1728052371913,-2412.58,0.00041369,120]
[339840523,1728052371923,-581.68,0.00041369,120]
[339840524,1728052371933,-714.4,0.00041369,120]
[339840525,1728052371943,-500.0,0.00041369,120]
[339840526,1728052371952,-527.07,0.00041369,120]
[339840527,1728052371962,-504.2936908,0.00041369,120]
[339840528,1728052371972,-1396.61,0.00041369,120]
[339840529,1728052371981,-500.0,0.00041369,120]
[339840530,1728052371991,-1592.74,0.00041369,21]
[339840531,1728052372002,-500.0,0.00041369,120]
[339840532,1728052372013,-500.0,0.00041369,120]
[339840533,1728052372022,-500.0,0.00041369,120]
[339840534,1728052372035,-448.64687638,0.00041369,120]
[339840535,1728052372048,-199.14536389,0.00041369,120]
[339840536,1728052372057,-923.99,0.00041369,120]
[339840537,1728052372067,-500.0,0.00041369,120]
[339840538,1728052372076,-1372.86,0.00041369,120]
[339840539,1728052372085,-500.0,0.00041369,120]
[339840540,1728052372094,-1453.68,0.00041369,120]
[339840541,1728052372103,-744.3,0.00041369,120]
[339840542,1728052372112,-1283.59,0.00041369,120]
[339840543,1728052372122,-189.85385346,0.00041369,120]
[339840544,1728052372131,-500.0,0.00041369,120]
[339840545,1728052372141,-893.06,0.00041369,120]
[339840546,1728052372151,-947.29,0.00041369,120]
[339840547,1728052372161,-518.43067946,0.00041369,120]
[339840548,1728052372171,-500.0,0.00041369,120]
[339840549,1728052372180,-1424.36,0.00041369,120]
[339840550,1728052372189,-1090.27,0.00041369,120]
[339840551,1728052372199,-827.5,0.00041369,120]
[339840552,1728052372209,-647.57,0.00041369,120]
[339840553,1728052372218,-500.0,0.00041369,120]
[339840554,1728052372228,-1055.93,0.00041369,120]
[339840555,1728052372237,-649.79277975,0.00041369,120]
[339840556,1728052372247,-500.0,0.00041369,120]
[339840557,1728052372256,-2611.45,0.00041369,120]
[339840558,1728052372266,-500.0,0.00041369,120]
[339840559,1728052372275,-500.0,0.00041369,120]
[339840560,1728052372285,-2091.62,0.00041369,120]
[339840561,1728052372294,-661.05,0.00041369,120]
[339840562,1728052372307,-500.0,0.00041369,120]
[339840563,1728052372317,-1075.43,0.00041369,120]
[339840564,1728052372326,-578.92,0.00041369,120]
[339840565,1728052372335,-1153.94,0.00041369,120]
[339840566,1728052372345,-500.0,0.00041369,120]
[339840567,1728052372355,-1439.25,0.00041369,120]
[339840568,1728052372365,-500.0,0.00041369,120]
[339840569,1728052372374,-500.0,0.00041369,120]
[339840570,1728052372385,-3944.47,0.00041369,120]
[339840571,1728052372395,-779.04,0.00041369,120]
[339840572,1728052372404,-4476.87,0.00041369,120]
[339840573,1728052372413,-657.6,0.00041369,120]
[339840574,1728052372422,-774.23,0.00041369,120]
[339840575,1728052372432,-576.6,0.00041369,120]
[339840576,1728052372441,-670.06,0.00041369,120]
[339840577,1728052372451,-500.0,0.00041369,120]
[339840578,1728052372461,-500.0,0.00041369,120]
[339840579,1728052372471,-586.12194348,0.00041369,120]
[339840580,1728052372481,-4369.58,0.00041369,120]
[339840581,1728052372490,-1234.77,0.00041369,120]
[339840582,1728052372500,-500.0,0.00041369,120]
[339840583,1728052372510,-7513.51,0.00041369,120]
[339840584,1728052372519,-1456.1,0.00041369,120]
[339840585,1728052372529,-950.52,0.00041369,120]
[339840586,1728052372539,-1323.19,0.00041369,120]
[339840587,1728052372551,-1491.4,0.00041369,120]
[339840588,1728052372560,-511.9,0.00041369,120]
[339840589,1728052372570,-500.0,0.00041369,120]
[339840590,1728052372580,-500.0,0.00041369,120]
[339840591,1728052372589,-500.0,0.00041369,120]
[339840592,1728052372599,-939.24,0.00041369,120]
[339840593,1728052372609,-1484.53,0.00041369,120]
[339840594,1728052372618,-2473.72,0.00041369,120]
[339840595,1728052372628,-500.0,0.00041369,120]
[339840596,1728052372638,-576.71,0.00041369,120]
[339840597,1728052372648,-578.69,0.00041369,120]
[339840598,1728052372658,-782.01,0.00041369,120]
[339840599,1728052372667,-500.0,0.00041369,120]
[339840600,1728052372677,-500.0,0.00041369,120]
[339840601,1728052372687,-500.0,0.00041369,120]
[339840602,1728052372696,-3591.16,0.00041369,120]
[339840603,1728052372706,-500.0,0.00041369,120]
[339840604,1728052372716,-500.0,0.00041369,120]
[339840605,1728052372726,-500.0,0.00041369,120]
[339840606,1728052372736,-3218.69,0.00041369,120]
[339840607,1728052372746,-500.0,0.00041369,120]
[339840608,1728052372756,-970.53,0.00041369,120]
[339840609,1728052372766,-964.0,0.00041369,120]
[339840610,1728052372776,-500.0,0.00041369,120]
[339840611,1728052372786,-623.3,0.00041369,120]
[339840612,1728052372797,-500.0,0.00041369,120]
[339840613,1728052372807,-1335.89,0.00041369,120]
[339840614,1728052372817,-770.71,0.00041369,120]
[339840615,1728052372827,-1460.22,0.00041369,120]
[339840616,1728052372837,-1654.84,0.00041369,120]
[339840617,1728052372848,-4976.51,0.00041369,120]
[339840618,1728052372858,-513.52298773,0.00041369,120]
[339840619,1728052372867,-733.59,0.00041369,120]
[339840620,1728052372877,-932.62,0.00041369,120]
[339840621,1728052372887,-250.78,0.00041369,120]
[339840622,1728052372897,-1867.11,0.00041369,120]
[339840623,1728052372907,-11036.81,0.00041369,120]
[339840624,1728052372917,-2395.29,0.00041369,120]
[339840625,1728052372927,-500.0,0.00041369,120]
[339840626,1728052372937,-538.86,0.00041369,120]
[339840627,1728052372947,-1321.64,0.00041369,120]
[339840628,1728052372957,-500.0,0.00041369,120]
[339840629,1728052372967,-500.0,0.00041369,120]
[339840630,1728052372976,-1311.12,0.00041369,120]
[339840631,1728052372986,-500.0,0.00041369,120]
[339840632,1728052372996,-686.82,0.00041369,120]
[339840633,1728052373006,-1288.59,0.00041369,120]
[339840634,1728052373015,-500.0,0.00041369,120]
[339840635,1728052373025,-1800.34,0.00041369,120]
[339840636,1728052373036,-599.98,0.00041369,30]
[339840637,1728052373047,-500.0,0.00041369,120]
[339840638,1728052373063,-845.07,0.00041369,120]
[339840639,1728052373073,-500.0,0.00041369,120]
[339840640,1728052373083,-1469.35,0.00041369,120]
[339840641,1728052373092,-1052.81,0.00041369,120]
[339840642,1728052373104,-1253.47,0.00041369,120]
[339840643,1728052373114,-6995.81,0.00041369,120]
[339840644,1728052373124,-500.0,0.00041369,120]
[339840645,1728052373134,-507.47,0.00041369,120]
[339840646,1728052373144,-500.0,0.00041369,120]
[339840647,1728052373153,-500.0,0.00041369,120]
[339840648,1728052373163,-2611.3,0.00041369,120]
[339840649,1728052373173,-500.0,0.00041369,120]
[339840650,1728052373183,-604.27,0.00041369,120]
[339840651,1728052373192,-2230.01,0.00041369,120]
[339840652,1728052373202,-500.0,0.00041369,120]
[339840653,1728052373212,-500.0,0.00041369,120]
[339840654,1728052373222,-646.77,0.00041369,120]
[339840655,1728052373231,-500.0,0.00041369,120]
[339840656,1728052373477,-500.0,0.00041369,120]
[339840657,1728052373521,-500.0,0.00041369,120]
[339840658,1728052373533,-500.0,0.00041369,120]
[339840659,1728052373542,-154.33,0.00041369,120]
[339840660,1728052373553,-514.91,0.00041369,120]
[339840661,1728052373564,-1404.49,0.00041369,120]
[339840662,1728052373574,-443.89101174,0.00041369,120]
[339840663,1728052373583,-500.0,0.00041369,120]
[339840664,1728052373593,-500.0,0.00041369,120]
[339840665,1728052373603,-413.82312622,0.00041369,120]
[339840666,1728052373612,-500.0,0.00041369,120]
[339840667,1728052373622,-606.88,0.00041369,120]
[339840668,1728052373631,-1190.32,0.00041369,120]
[339840669,1728052373641,-1530.35,0.00041369,120]
[339840670,1728052373651,-500.0,0.00041369,120]
[339840671,1728052373661,-1303.53,0.00041369,120]
[339840672,1728052373671,-500.0,0.00041369,120]
[339840673,1728052373680,-765.62,0.00041369,120]
[339840674,1728052373690,-625.05,0.00041369,120]
[339840675,1728052373700,-2906.15,0.00041369,120]
[339840676,1728052373709,-500.0,0.00041369,7]
[339840677,1728052373719,-1163.76,0.00041369,120]
[339840678,1728052373729,-2290.51,0.00041369,120]
[339840679,1728052373740,-500.0,0.00041369,120]
[339840680,1728052373750,-649.86,0.00041369,120]
[339840681,1728052373760,-500.0,0.00041369,120]
[339840682,1728052373769,-716.37,0.00041369,120]
[339840683,1728052373779,-166.60350784,0.00041369,120]
[339840684,1728052373789,-3503.34,0.00041369,120]
[339840685,1728052373800,-500.0,0.00041369,120]
[339840686,1728052373810,-5035.5,0.00041369,120]
[339840687,1728052373822,-1925.44,0.00041369,120]
[339840688,1728052373832,-7070.31,0.00041369,120]
[339840689,1728052373842,-293.80505545,0.00041369,120]
[339840690,1728052373852,-1047.78,0.00041369,120]
[339840691,1728052373862,-500.0,0.00041369,120]
[339840692,1728052373872,-658.7,0.00041369,120]
[339840693,1728052373883,-500.0,0.00041369,120]
[339840694,1728052373893,-4318.76,0.00041369,120]
[339840695,1728052373903,-1963.01,0.00041369,120]
[339840696,1728052373913,-1732.87,0.00041369,120]
[339840697,1728052373923,-500.0,0.00041369,120]
[339840698,1728052373934,-500.0,0.00041369,120]
[339840699,1728052373944,-500.0,0.00041369,120]
[339840700,1728052373954,-500.0,0.00041369,120]
[339840701,1728052373964,-820.76,0.00041369,120]
[339840702,1728052373974,-500.0,0.00041369,120]
[339840703,1728052373983,-2184.74,0.00041369,120]
[339840704,1728052373993,-3611.87,0.00041369,120]
[339840705,1728052374006,-1967.11,0.00041369,120]
[339840706,1728052374016,-825.07,0.00041369,120]
[339840707,1728052374026,-3035.24,0.00041369,120]
[339840708,1728052374036,-511.74,0.00041369,120]
[339840709,1728052374048,-500.0,0.00041369,120]
[339840710,1728052374058,-281.63555318,0.00041369,120]
[339840711,1728052374067,-560.83,0.00041369,120]
[339840712,1728052374077,-1805.1,0.00041369,120]
[339840713,1728052374086,-1582.94,0.00041369,120]
[339840714,1728052374096,-1065.36,0.00041369,120]
[339840715,1728052374106,-5880.09,0.00041369,120]
[339840716,1728052374116,-1564.74,0.00041369,120]
[339840717,1728052374126,-500.0,0.00041369,120]
[339840718,1728052374135,-4434.66,0.00041369,120]
[339840719,1728052374145,-840.82,0.00041369,120]
[339840720,1728052374155,-778.93,0.00041369,120]
[339840721,1728052374166,-1115.42,0.00041369,120]
[339840722,1728052374176,-641.17,0.00041369,120]
[339840723,1728052374186,-1034.46,0.00041369,120]
[339840724,1728052374197,-1167.3,0.00041369,120]
[339840725,1728052374209,-640.61,0.00041369,120]
[339840726,1728052374219,-541.94,0.00041369,120]
[339840727,1728052374229,-500.0,0.00041369,120]
[339840728,1728052374239,-500.0,0.00041369,120]
[339840729,1728052374249,-973.61,0.00041369,120]
[339840730,1728052374259,-1034.57,0.00041369,120]
[339840731,1728052374269,-500.0,0.00041369,120]
[339840732,1728052374279,-9952.7,0.00041369,120]
[339840733,1728052374289,-2401.59,0.00041369,120]
[339840734,1728052374299,-500.0,0.00041369,120]
[339840735,1728052374312,-500.0,0.00041369,120]
[339840736,1728052374322,-503.06,0.00041369,120]
[339840737,1728052374332,-665.23,0.00041369,120]
[339840738,1728052374342,-500.0,0.00041369,120]
[339840739,1728052374352,-1417.36,0.00041369,120]
[339840740,1728052374363,-1278.94,0.00041369,120]